[Event "Live Chess"]
[Site "Chess.com"]
[Date "2020.05.16"]
[Round "2.11"]
[White "Bayat, Shohreh"]
[Black "Norinkeviciute, Rasa"]
[Result "1-0"]
[ECO "B07"]
[WhiteElo "2060"]
[BlackElo "2080"]
[PlyCount "129"]
[EventDate "2020.??.??"]
[TimeControl "180+2"]
[WhiteClock "0:00:16"]
[BlackClock "0:00:31"]

1. d4 {[%emt 0:00:00]} d6 {[%emt 0:00:03]} 2. Nf3 {[%emt 0:00:06]} Nf6 {
[%emt 0:00:02]} 3. Nc3 {[%emt 0:00:05]} Nbd7 {[%emt 0:00:04]} 4. e4 {[%emt 0:
00:05]} c6 {[%emt 0:00:01]} 5. Bc4 {[%emt 0:00:03]} Qc7 {[%emt 0:00:09]} 6. O-O
{[%emt 0:00:08]} e5 {[%emt 0:00:02]} 7. a4 {[%emt 0:00:04]} h6 {[%emt 0:00:01]}
8. Be3 {[%emt 0:00:03]} Be7 {[%emt 0:00:02]} 9. Bb3 {[%emt 0:00:07]} g5 {
[%emt 0:00:04]} 10. dxe5 {[%emt 0:00:04]} dxe5 {[%emt 0:00:02]} 11. Qe2 {
[%emt 0:00:04]} Nf8 {[%emt 0:00:04]} 12. Nd2 {[%emt 0:00:11]} Ng6 {[%emt 0:00:
04]} 13. f3 {[%emt 0:00:08]} Rg8 {[%emt 0:00:02]} 14. Kh1 {[%emt 0:00:09]} Nf4
{[%emt 0:00:03]} 15. Bxf4 {[%emt 0:00:09]} gxf4 {[%emt 0:00:02]} 16. Nc4 {
[%emt 0:00:07]} Be6 {[%emt 0:00:08]} 17. Nd2 {[%emt 0:00:05]} Qd7 {[%emt 0:00:
13]} 18. Bxe6 {[%emt 0:00:02]} Qxe6 {[%emt 0:00:01]} 19. Nb3 {[%emt 0:00:02]}
O-O-O {[%emt 0:00:06]} 20. Rfd1 {[%emt 0:00:03]} Kb8 {[%emt 0:00:03]} 21. Rxd8+
{[%emt 0:00:02]} Rxd8 {[%emt 0:00:01]} 22. Rd1 {[%emt 0:00:01]} Rd7 {[%emt 0:
00:03]} 23. Rxd7 {[%emt 0:00:02]} Nxd7 {[%emt 0:00:04]} 24. Qd2 {[%emt 0:00:07]
} Kc7 {[%emt 0:00:05]} 25. a5 {[%emt 0:00:03]} Nc5 {[%emt 0:00:14]} 26. Nxc5 {
[%emt 0:00:03]} Bxc5 {[%emt 0:00:01]} 27. Qd3 {[%emt 0:00:00]} Bd4 {[%emt 0:00:
08]} 28. a6 {[%emt 0:00:09]} bxa6 {[%emt 0:00:30]} 29. Qxa6 {[%emt 0:00:09]}
Bb6 {[%emt 0:00:08]} 30. Qd3 {[%emt 0:00:04]} Qe7 {[%emt 0:00:17]} 31. Qc4 {
[%emt 0:00:05]} Qd7 {[%emt 0:00:11]} 32. Qd3 {[%emt 0:00:14]} Qe7 {[%emt 0:00:
09]} 33. Qc4 {[%emt 0:00:02]} Qd7 {[%emt 0:00:23]} 34. Qd3 {[%emt 0:00:02]} Bd4
{[%emt 0:00:13]} 35. h3 {[%emt 0:00:22]} Qe6 {[%emt 0:00:08]} 36. b3 {[%emt 0:
00:08]} Qd6 {[%emt 0:00:04]} 37. Qc4 {[%emt 0:00:06]} Qd7 {[%emt 0:00:03]} 38.
Nb5+ {[%emt 0:00:07]} Kb6 {[%emt 0:00:04]} 39. Nxd4 {[%emt 0:00:01]} Qxd4 {
[%emt 0:00:03]} 40. Qxf7 {[%emt 0:00:08]} Qd1+ {[%emt 0:00:02]} 41. Kh2 {
[%emt 0:00:02]} Qxc2 {[%emt 0:00:01]} 42. Qe6 {[%emt 0:00:10]} Qc3 {[%emt 0:00:
03]} 43. Qxh6 {[%emt 0:00:12]} Qxb3 {[%emt 0:00:01]} 44. h4 {[%emt 0:00:04]}
Qc3 {[%emt 0:00:09]} 45. h5 {[%emt 0:00:02]} Qe1 {[%emt 0:00:01]} 46. Qg5 {
[%emt 0:00:01]} a5 {[%emt 0:00:03]} 47. h6 {[%emt 0:00:01]} Qb4 {[%emt 0:00:03]
} 48. h7 {[%emt 0:00:04]} Qf8 {[%emt 0:00:02]} 49. Qg8 {[%emt 0:00:05]} Qh6+ {
[%emt 0:00:02]} 50. Kg1 {[%emt 0:00:01]} Qh4 {[%emt 0:00:02]} 51. h8=Q {
[%emt 0:00:01]} Qe1+ {[%emt 0:00:02]} 52. Kh2 {[%emt 0:00:01]} Qf2 {[%emt 0:00:
02]} 53. Qb8+ {[%emt 0:00:02]} Kc5 {[%emt 0:00:02]} 54. Qhxe5+ {[%emt 0:00:01]}
Kc4 {[%emt 0:00:02]} 55. Qxf4 {[%emt 0:00:04]} c5 {[%emt 0:00:02]} 56. e5+ {
[%emt 0:00:01]} Kc3 {[%emt 0:00:02]} 57. Qb5 {[%emt 0:00:02]} Qd4 {[%emt 0:00:
04]} 58. Qxd4+ {[%emt 0:00:03]} cxd4 {[%emt 0:00:01]} 59. Qxa5+ {[%emt 0:00:01]
} Kc2 {[%emt 0:00:01]} 60. Qd5 {[%emt 0:00:01]} d3 {[%emt 0:00:01]} 61. Qxd3+ {
[%emt 0:00:01]} Kxd3 {[%emt 0:00:01]} 62. e6 {[%emt 0:00:00]} Ke3 {[%emt 0:00:
00]} 63. e7 {[%emt 0:00:00]} Kf4 {[%emt 0:00:01]} 64. e8=Q {[%emt 0:00:00]} Kg5
{[%emt 0:00:00]} 65. Qg8+ {[%emt 0:00:01] Bayat, Shohreh won on time} 1-0

[Event "Live Chess"]
[Site "Chess.com"]
[Date "2020.05.16"]
[Round "2.12"]
[White "Norinkeviciute, Rasa"]
[Black "Bayat, Shohreh"]
[Result "0-1"]
[ECO "A03"]
[WhiteElo "2051"]
[BlackElo "2068"]
[PlyCount "58"]
[EventDate "2020.??.??"]
[TimeControl "180+2"]
[WhiteClock "0:00:33"]
[BlackClock "0:00:05"]

1. f4 {[%emt 0:00:00]} d5 {[%emt 0:00:01]} 2. Nf3 {[%emt 0:00:02]} g6 {[%emt 0:
00:01]} 3. g3 {[%emt 0:00:01]} Bg7 {[%emt 0:00:01]} 4. Bg2 {[%emt 0:00:01]} c6
{[%emt 0:00:01]} 5. O-O {[%emt 0:00:02]} Nd7 {[%emt 0:00:01]} 6. d3 {[%emt 0:
00:01]} e5 {[%emt 0:00:01]} 7. fxe5 {[%emt 0:00:02]} Nxe5 {[%emt 0:00:02]} 8.
Nc3 {[%emt 0:00:02]} Ne7 {[%emt 0:00:03]} 9. e4 {[%emt 0:00:01]} Nxf3+ {
[%emt 0:00:04]} 10. Qxf3 {[%emt 0:00:04]} O-O {[%emt 0:00:13]} 11. exd5 {
[%emt 0:00:03]} Bxc3 {[%emt 0:00:28]} 12. bxc3 {[%emt 0:00:03]} Nxd5 {[%emt 0:
00:01]} 13. Bh6 {[%emt 0:00:06]} Be6 {[%emt 0:00:10]} 14. c4 {[%emt 0:00:10]}
Nb4 {[%emt 0:00:19]} 15. Bxf8 {[%emt 0:00:30]} Qxf8 {[%emt 0:00:00]} 16. c3 {
[%emt 0:00:15]} Nc2 {[%emt 0:00:15]} 17. Rac1 {[%emt 0:00:18]} Na3 {[%emt 0:00:
01]} 18. Kh1 {[%emt 0:00:06]} Rd8 {[%emt 0:00:01]} 19. Rcd1 {[%emt 0:00:06]}
Qc5 {[%emt 0:00:04]} 20. Qf4 {[%emt 0:00:08]} Nc2 {[%emt 0:00:05]} 21. Rf2 {
[%emt 0:00:56]} Ne3 {[%emt 0:00:20]} 22. Rdd2 {[%emt 0:00:03]} Ng4 {[%emt 0:00:
15]} 23. Rfe2 {[%emt 0:00:03]} Qa3 {[%emt 0:00:13]} 24. Rc2 {[%emt 0:00:05]}
Rxd3 {[%emt 0:00:05]} 25. Red2 {[%emt 0:00:13]} Rxc3 {[%emt 0:00:15]} 26. Qd4 {
[%emt 0:00:19]} Rxc2 {[%emt 0:00:14]} 27. Rxc2 {[%emt 0:00:02]} Qe3 {[%emt 0:
00:11]} 28. Qxe3 {[%emt 0:00:11]} Nxe3 {[%emt 0:00:00]} 29. Rc3 {[%emt 0:00:03]
} Nxc4 {[%emt 0:00:01] Bayat, Shohreh won on time} 0-1

[Event "Live Chess"]
[Site "Chess.com"]
[Date "2020.05.16"]
[Round "2.13"]
[White "Bayat, Shohreh"]
[Black "Norinkeviciute, Rasa"]
[Result "0-1"]
[ECO "B00"]
[WhiteElo "2060"]
[BlackElo "2078"]
[PlyCount "98"]
[EventDate "2020.??.??"]
[TimeControl "180+2"]
[WhiteClock "0:00:18"]
[BlackClock "0:00:33"]

1. d4 {[%emt 0:00:05]} Nf6 {[%emt 0:00:05]} 2. Nf3 {[%emt 0:00:52]} b6 {
[%emt 0:00:10]} 3. Nc3 {[%emt 0:00:03]} e6 {[%emt 0:00:06]} 4. e4 {[%emt 0:00:
04]} Bb7 {[%emt 0:00:04]} 5. Bd3 {[%emt 0:00:01]} d6 {[%emt 0:00:11]} 6. Be3 {
[%emt 0:00:01]} a6 {[%emt 0:00:07]} 7. h3 {[%emt 0:00:01]} Nbd7 {[%emt 0:00:02]
} 8. a4 {[%emt 0:00:05]} c5 {[%emt 0:00:05]} 9. Qd2 {[%emt 0:00:05]} Qc7 {
[%emt 0:00:02]} 10. O-O {[%emt 0:00:09]} Be7 {[%emt 0:00:02]} 11. b3 {[%emt 0:
00:03]} O-O {[%emt 0:00:08]} 12. Ne2 {[%emt 0:00:21]} Rac8 {[%emt 0:00:04]} 13.
Ng3 {[%emt 0:00:17]} Bc6 {[%emt 0:00:13]} 14. c3 {[%emt 0:00:01]} Bb7 {[%emt 0:
00:03]} 15. Rfe1 {[%emt 0:00:02]} Rfe8 {[%emt 0:00:05]} 16. Bf4 {[%emt 0:00:02]
} e5 {[%emt 0:00:14]} 17. dxe5 {[%emt 0:00:01]} dxe5 {[%emt 0:00:01]} 18. Bg5 {
[%emt 0:00:03]} h6 {[%emt 0:00:18]} 19. Be3 {[%emt 0:00:07]} Bf8 {[%emt 0:00:
10]} 20. Nh4 {[%emt 0:00:03]} Nb8 {[%emt 0:00:07]} 21. Nhf5 {[%emt 0:00:02]}
Rcd8 {[%emt 0:00:05]} 22. Qe2 {[%emt 0:00:02]} Rd7 {[%emt 0:00:07]} 23. Bc4 {
[%emt 0:00:05]} Nc6 {[%emt 0:00:08]} 24. Qf3 {[%emt 0:00:03]} Na5 {[%emt 0:00:
03]} 25. Nxh6+ {[%emt 0:00:11]} gxh6 {[%emt 0:00:11]} 26. Qxf6 {[%emt 0:00:01]}
Bg7 {[%emt 0:00:01]} 27. Qh4 {[%emt 0:00:04]} Nxc4 {[%emt 0:00:06]} 28. bxc4 {
[%emt 0:00:02]} Qc6 {[%emt 0:00:03]} 29. f3 {[%emt 0:00:07]} Qg6 {[%emt 0:00:
02]} 30. Nf5 {[%emt 0:00:03]} Re6 {[%emt 0:00:05]} 31. Rad1 {[%emt 0:00:03]}
Rxd1 {[%emt 0:00:20]} 32. Rxd1 {[%emt 0:00:00]} Bf6 {[%emt 0:00:05]} 33. Qxh6 {
[%emt 0:00:09]} Qxh6 {[%emt 0:00:03]} 34. Nxh6+ {[%emt 0:00:00]} Kg7 {[%emt 0:
00:02]} 35. Nf5+ {[%emt 0:00:02]} Kg6 {[%emt 0:00:01]} 36. h4 {[%emt 0:00:04]}
Bc6 {[%emt 0:00:03]} 37. a5 {[%emt 0:00:02]} bxa5 {[%emt 0:00:05]} 38. Bxc5 {
[%emt 0:00:01]} a4 {[%emt 0:00:02]} 39. Bd6 {[%emt 0:00:06]} Re8 {[%emt 0:00:
06]} 40. g4 {[%emt 0:00:04]} Bd8 {[%emt 0:00:06]} 41. Rb1 {[%emt 0:00:06]} Ba5
{[%emt 0:00:03]} 42. Rc1 {[%emt 0:00:09]} Bd7 {[%emt 0:00:02]} 43. Kg2 {
[%emt 0:00:04]} Bxf5 {[%emt 0:00:02]} 44. exf5+ {[%emt 0:00:00]} Kg7 {[%emt 0:
00:03]} 45. g5 {[%emt 0:00:01]} f6 {[%emt 0:00:02]} 46. g6 {[%emt 0:00:04]} Rd8
{[%emt 0:00:02]} 47. c5 {[%emt 0:00:01]} Re8 {[%emt 0:00:05]} 48. Ra1 {[%emt 0:
00:01]} e4 {[%emt 0:00:03]} 49. Rxa4 {[%emt 0:00:05]} exf3+ {[%emt 0:00:01]
Norinkeviciute, Rasa won on time} 0-1

[Event "Live Chess"]
[Site "Chess.com"]
[Date "2020.05.16"]
[Round "2.14"]
[White "Norinkeviciute, Rasa"]
[Black "Bayat, Shohreh"]
[Result "0-1"]
[ECO "A03"]
[WhiteElo "2053"]
[BlackElo "2068"]
[PlyCount "196"]
[EventDate "2020.??.??"]
[TimeControl "180+2"]
[WhiteClock "0:01:03"]
[BlackClock "0:00:08"]

1. f4 {[%emt 0:00:01]} d5 {[%emt 0:00:02]} 2. Nf3 {[%emt 0:00:02]} g6 {[%emt 0:
00:02]} 3. g3 {[%emt 0:00:01]} Bg7 {[%emt 0:00:01]} 4. Bg2 {[%emt 0:00:01]} c6
{[%emt 0:00:01]} 5. d3 {[%emt 0:00:02]} Nf6 {[%emt 0:00:05]} 6. O-O {[%emt 0:
00:05]} O-O {[%emt 0:00:03]} 7. h3 {[%emt 0:00:02]} Qd6 {[%emt 0:00:02]} 8. Kh2
{[%emt 0:00:07]} Nbd7 {[%emt 0:00:02]} 9. Nc3 {[%emt 0:00:03]} b6 {[%emt 0:00:
01]} 10. e4 {[%emt 0:00:08]} dxe4 {[%emt 0:00:04]} 11. dxe4 {[%emt 0:00:03]}
Qxd1 {[%emt 0:00:01]} 12. Rxd1 {[%emt 0:00:02]} Nc5 {[%emt 0:00:31]} 13. e5 {
[%emt 0:00:07]} Nfe4 {[%emt 0:00:09]} 14. Nxe4 {[%emt 0:00:19]} Nxe4 {[%emt 0:
00:00]} 15. Be3 {[%emt 0:00:01]} c5 {[%emt 0:00:07]} 16. Ng5 {[%emt 0:00:23]}
Nxg5 {[%emt 0:00:16]} 17. Bxa8 {[%emt 0:00:02]} Ne6 {[%emt 0:00:01]} 18. Bg2 {
[%emt 0:00:06]} Nc7 {[%emt 0:00:01]} 19. c3 {[%emt 0:00:11]} f6 {[%emt 0:00:01]
} 20. exf6 {[%emt 0:00:02]} Bxf6 {[%emt 0:00:00]} 21. Rd2 {[%emt 0:00:01]} e5 {
[%emt 0:00:03]} 22. Rad1 {[%emt 0:00:04]} Be6 {[%emt 0:00:02]} 23. a3 {[%emt 0:
00:12]} Bb3 {[%emt 0:00:05]} 24. Re1 {[%emt 0:00:05]} exf4 {[%emt 0:00:04]} 25.
Bxf4 {[%emt 0:00:01]} Ne6 {[%emt 0:00:04]} 26. Bh6 {[%emt 0:00:04]} Re8 {
[%emt 0:00:05]} 27. Bd5 {[%emt 0:00:14]} Bxd5 {[%emt 0:00:06]} 28. Rxd5 {
[%emt 0:00:02]} Re7 {[%emt 0:00:00]} 29. Rd2 {[%emt 0:00:09]} Kf7 {[%emt 0:00:
01]} 30. Rde2 {[%emt 0:00:16]} g5 {[%emt 0:00:03]} 31. h4 {[%emt 0:00:01]} gxh4
{[%emt 0:00:05]} 32. gxh4 {[%emt 0:00:01]} Bxh4 {[%emt 0:00:03]} 33. Rf1+ {
[%emt 0:00:01]} Kg6 {[%emt 0:00:05]} 34. Bd2 {[%emt 0:00:05]} h6 {[%emt 0:00:
11]} 35. Kh3 {[%emt 0:00:08]} Bg5 {[%emt 0:00:05]} 36. Rg2 {[%emt 0:00:06]} Rd7
{[%emt 0:00:05]} 37. Bxg5 {[%emt 0:00:27]} hxg5 {[%emt 0:00:00]} 38. Rgf2 {
[%emt 0:00:03]} Nf4+ {[%emt 0:00:04]} 39. Kg4 {[%emt 0:00:02]} Rh7 {[%emt 0:00:
06]} 40. Kf3 {[%emt 0:00:05]} Rh3+ {[%emt 0:00:02]} 41. Ke4 {[%emt 0:00:05]}
Rh7 {[%emt 0:00:04]} 42. Rd2 {[%emt 0:00:03]} Re7+ {[%emt 0:00:02]} 43. Kf3 {
[%emt 0:00:01]} Re6 {[%emt 0:00:07]} 44. Rff2 {[%emt 0:00:02]} a6 {[%emt 0:00:
03]} 45. Rd8 {[%emt 0:00:03]} b5 {[%emt 0:00:02]} 46. Rg8+ {[%emt 0:00:03]} Kf5
{[%emt 0:00:02]} 47. Rf8+ {[%emt 0:00:01]} Kg6 {[%emt 0:00:01]} 48. Kg4 {
[%emt 0:00:05]} Nd3 {[%emt 0:00:09]} 49. R2f7 {[%emt 0:00:04]} Re4+ {[%emt 0:
00:09]} 50. Kg3 {[%emt 0:00:01]} Nxb2 {[%emt 0:00:05]} 51. Rf6+ {[%emt 0:00:02]
} Kg7 {[%emt 0:00:03]} 52. R8f7+ {[%emt 0:00:01]} Kg8 {[%emt 0:00:02]} 53. Rf8+
{[%emt 0:00:06]} Kg7 {[%emt 0:00:02]} 54. Rf5 {[%emt 0:00:06]} Re3+ {[%emt 0:
00:04]} 55. Kg4 {[%emt 0:00:01]} Rxc3 {[%emt 0:00:03]} 56. Ra8 {[%emt 0:00:03]}
Rxa3 {[%emt 0:00:09]} 57. Ra7+ {[%emt 0:00:03]} Kg6 {[%emt 0:00:03]} 58. Rxg5+
{[%emt 0:00:01]} Kf6 {[%emt 0:00:01]} 59. Rxc5 {[%emt 0:00:04]} Nc4 {[%emt 0:
00:04]} 60. Rc6+ {[%emt 0:00:02]} Ke5 {[%emt 0:00:02]} 61. Rd7 {[%emt 0:00:03]}
Re3 {[%emt 0:00:06]} 62. Rc8 {[%emt 0:00:03]} Re4+ {[%emt 0:00:02]} 63. Kg3 {
[%emt 0:00:01]} Re3+ {[%emt 0:00:01]} 64. Kg2 {[%emt 0:00:02]} Re4 {[%emt 0:00:
05]} 65. Re8+ {[%emt 0:00:03]} Kf4 {[%emt 0:00:01]} 66. Rf7+ {[%emt 0:00:02]}
Ke3 {[%emt 0:00:01]} 67. Rd8 {[%emt 0:00:01]} Rd4 {[%emt 0:00:01]} 68. Re8+ {
[%emt 0:00:02]} Kd3 {[%emt 0:00:03]} 69. Ra7 {[%emt 0:00:03]} a5 {[%emt 0:00:
03]} 70. Rb8 {[%emt 0:00:02]} b4 {[%emt 0:00:02]} 71. Rh7 {[%emt 0:00:02]} Kc3
{[%emt 0:00:01]} 72. Rh3+ {[%emt 0:00:02]} Rd3 {[%emt 0:00:01]} 73. Rh4 {
[%emt 0:00:02]} Rd4 {[%emt 0:00:01]} 74. Rh3+ {[%emt 0:00:02]} Rd3 {[%emt 0:00:
01]} 75. Rh1 {[%emt 0:00:02]} Rd2+ {[%emt 0:00:02]} 76. Kg3 {[%emt 0:00:01]} b3
{[%emt 0:00:02]} 77. Rc8 {[%emt 0:00:03]} a4 {[%emt 0:00:02]} 78. Kf4 {[%emt 0:
00:03]} b2 {[%emt 0:00:01]} 79. Rh3+ {[%emt 0:00:01]} Kb4 {[%emt 0:00:05]} 80.
Rb8+ {[%emt 0:00:02]} Ka5 {[%emt 0:00:01]} 81. Ra8+ {[%emt 0:00:02]} Kb4 {
[%emt 0:00:01]} 82. Rb8+ {[%emt 0:00:01]} Ka5 {[%emt 0:00:01]} 83. Rh5+ {
[%emt 0:00:02]} Ka6 {[%emt 0:00:04]} 84. Rh6+ {[%emt 0:00:02]} Ka7 {[%emt 0:00:
02]} 85. Rb4 {[%emt 0:00:02]} a3 {[%emt 0:00:06]} 86. Rh7+ {[%emt 0:00:03]} Ka6
{[%emt 0:00:02]} 87. Rh6+ {[%emt 0:00:02]} Ka5 {[%emt 0:00:01]} 88. Rxc4 {
[%emt 0:00:02]} b1=Q {[%emt 0:00:02]} 89. Rc5+ {[%emt 0:00:01]} Kb4 {[%emt 0:
00:04]} 90. Rb6+ {[%emt 0:00:02]} Kxc5 {[%emt 0:00:01]} 91. Rxb1 {[%emt 0:00:
01]} Rb2 {[%emt 0:00:01]} 92. Ra1 {[%emt 0:00:05]} a2 {[%emt 0:00:01]} 93. Ke3
{[%emt 0:00:00]} Kb4 {[%emt 0:00:01]} 94. Kd3 {[%emt 0:00:01]} Kb3 {[%emt 0:00:
01]} 95. Rc1 {[%emt 0:00:04]} Rb1 {[%emt 0:00:01]} 96. Rc3+ {[%emt 0:00:02]}
Kb4 {[%emt 0:00:03]} 97. Rc4+ {[%emt 0:00:01]} Kb5 {[%emt 0:00:01]} 98. Rc2 {
[%emt 0:00:04]} a1=Q {[%emt 0:00:01] Bayat, Shohreh won on time} 0-1

[Event "Live Chess"]
[Site "Chess.com"]
[Date "2020.05.16"]
[Round "2.21"]
[White "Somton, Anita"]
[Black "Varney, Zoe"]
[Result "0-1"]
[ECO "D30"]
[WhiteElo "1908"]
[BlackElo "1979"]
[PlyCount "66"]
[EventDate "2020.??.??"]
[TimeControl "180+2"]
[WhiteClock "0:00:23"]
[BlackClock "0:00:22"]

1. d4 {[%emt 0:00:00]} d5 {[%emt 0:00:01]} 2. Nf3 {[%emt 0:00:02]} Nf6 {
[%emt 0:00:02]} 3. c4 {[%emt 0:00:01]} c6 {[%emt 0:00:01]} 4. Qc2 {[%emt 0:00:
02]} e6 {[%emt 0:00:02]} 5. Bf4 {[%emt 0:00:03]} Nbd7 {[%emt 0:00:03]} 6. e3 {
[%emt 0:00:01]} Be7 {[%emt 0:00:01]} 7. Nbd2 {[%emt 0:00:02]} O-O {[%emt 0:00:
02]} 8. Bd3 {[%emt 0:00:03]} h6 {[%emt 0:00:36]} 9. h3 {[%emt 0:00:13]} Re8 {
[%emt 0:00:50]} 10. O-O {[%emt 0:00:05]} Bf8 {[%emt 0:00:01]} 11. Ne5 {[%emt 0:
00:11]} Nxe5 {[%emt 0:00:12]} 12. Bxe5 {[%emt 0:00:05]} Nd7 {[%emt 0:00:04]}
13. Bh2 {[%emt 0:00:07]} e5 {[%emt 0:00:11]} 14. cxd5 {[%emt 0:00:06]} cxd5 {
[%emt 0:00:09]} 15. dxe5 {[%emt 0:00:04]} Nxe5 {[%emt 0:00:01]} 16. Be2 {
[%emt 0:00:12]} Nc6 {[%emt 0:00:17]} 17. Nf3 {[%emt 0:00:05]} d4 {[%emt 0:00:
05]} 18. Rfd1 {[%emt 0:00:09]} Qf6 {[%emt 0:00:05]} 19. Nxd4 {[%emt 0:00:12]}
Nxd4 {[%emt 0:00:06]} 20. Rxd4 {[%emt 0:00:02]} Bf5 {[%emt 0:00:01]} 21. Qd2 {
[%emt 0:00:05]} Qg6 {[%emt 0:00:03]} 22. Kh1 {[%emt 0:00:06]} Bc5 {[%emt 0:00:
05]} 23. Rd5 {[%emt 0:00:08]} Be4 {[%emt 0:00:06]} 24. f3 {[%emt 0:00:23]} Bxd5
{[%emt 0:00:01]} 25. Qxd5 {[%emt 0:00:02]} Bb6 {[%emt 0:00:01]} 26. e4 {
[%emt 0:00:03]} Qc6 {[%emt 0:00:10]} 27. Qb3 {[%emt 0:00:06]} Rac8 {[%emt 0:00:
02]} 28. Bf4 {[%emt 0:00:04]} Qc2 {[%emt 0:00:06]} 29. Bd1 {[%emt 0:00:29]} Qf2
{[%emt 0:00:02]} 30. Bh2 {[%emt 0:00:06]} Red8 {[%emt 0:00:06]} 31. Qb5 {
[%emt 0:00:11]} Rd2 {[%emt 0:00:10]} 32. Be2 {[%emt 0:00:12]} Rxe2 {[%emt 0:00:
01]} 33. Rg1 {[%emt 0:00:04]} Re1 {[%emt 0:00:01] Varney, Zoe won by
resignation} 0-1

[Event "Live Chess"]
[Site "Chess.com"]
[Date "2020.05.16"]
[Round "2.22"]
[White "Varney, Zoe"]
[Black "Somton, Anita"]
[Result "1-0"]
[ECO "A55"]
[WhiteElo "1988"]
[BlackElo "1901"]
[PlyCount "81"]
[EventDate "2020.??.??"]
[TimeControl "180+2"]
[WhiteClock "0:00:17"]
[BlackClock "0:00:25"]

1. e4 {[%emt 0:00:00]} c6 {[%emt 0:00:00]} 2. c4 {[%emt 0:00:02]} e5 {[%emt 0:
00:01]} 3. Nf3 {[%emt 0:00:02]} d6 {[%emt 0:00:01]} 4. d4 {[%emt 0:00:01]} Nd7
{[%emt 0:00:02]} 5. Nc3 {[%emt 0:00:02]} Ngf6 {[%emt 0:00:01]} 6. Bd3 {[%emt 0:
00:08]} Be7 {[%emt 0:00:02]} 7. O-O {[%emt 0:00:01]} O-O {[%emt 0:00:03]} 8.
Re1 {[%emt 0:00:18]} a6 {[%emt 0:00:07]} 9. a4 {[%emt 0:00:07]} b6 {[%emt 0:00:
22]} 10. b4 {[%emt 0:00:19]} Bb7 {[%emt 0:00:09]} 11. Bb2 {[%emt 0:00:16]} c5 {
[%emt 0:00:28]} 12. bxc5 {[%emt 0:00:27]} bxc5 {[%emt 0:00:03]} 13. dxe5 {
[%emt 0:00:09]} dxe5 {[%emt 0:00:10]} 14. Nd5 {[%emt 0:00:01]} Nxd5 {[%emt 0:
00:04]} 15. exd5 {[%emt 0:00:03]} f6 {[%emt 0:00:03]} 16. Bf5 {[%emt 0:00:08]}
Bd6 {[%emt 0:00:04]} 17. Be6+ {[%emt 0:00:03]} Kh8 {[%emt 0:00:02]} 18. Nh4 {
[%emt 0:00:07]} Qe8 {[%emt 0:00:09]} 19. Nf5 {[%emt 0:00:13]} Bc7 {[%emt 0:00:
19]} 20. Qg4 {[%emt 0:00:02]} g6 {[%emt 0:00:05]} 21. Nh6 {[%emt 0:00:18]} f5 {
[%emt 0:00:10]} 22. Qg5 {[%emt 0:00:24]} Bd8 {[%emt 0:00:12]} 23. Qg3 {[%emt 0:
00:03]} f4 {[%emt 0:00:17]} 24. Qg4 {[%emt 0:00:07]} Bc8 {[%emt 0:00:10]} 25.
Bxd7 {[%emt 0:00:08]} Qxd7 {[%emt 0:00:07]} 26. Bxe5+ {[%emt 0:00:02]} Bf6 {
[%emt 0:00:02]} 27. Bxf6+ {[%emt 0:00:04]} Rxf6 {[%emt 0:00:01]} 28. Qxd7 {
[%emt 0:00:01]} Bxd7 {[%emt 0:00:01]} 29. Re7 {[%emt 0:00:02]} Rd8 {[%emt 0:00:
08]} 30. Nf7+ {[%emt 0:00:02]} Rxf7 {[%emt 0:00:08]} 31. Rxf7 {[%emt 0:00:01]}
g5 {[%emt 0:00:07]} 32. Re7 {[%emt 0:00:04]} Kg8 {[%emt 0:00:04]} 33. a5 {
[%emt 0:00:02]} h6 {[%emt 0:00:04]} 34. Rae1 {[%emt 0:00:01]} Kf8 {[%emt 0:00:
02]} 35. d6 {[%emt 0:00:03]} Bc6 {[%emt 0:00:03]} 36. R7e6 {[%emt 0:00:02]} Kg8
{[%emt 0:00:03]} 37. Rxh6 {[%emt 0:00:02]} Kg7 {[%emt 0:00:03]} 38. Rhe6 {
[%emt 0:00:02]} Bd7 {[%emt 0:00:03]} 39. Re7+ {[%emt 0:00:01]} Kf8 {[%emt 0:00:
02]} 40. f3 {[%emt 0:00:03]} Kg8 {[%emt 0:00:03]} 41. Kf2 {[%emt 0:00:01]
Varney, Zoe won by resignation} 1-0

[Event "Live Chess"]
[Site "Chess.com"]
[Date "2020.05.16"]
[Round "2.23"]
[White "Somton, Anita"]
[Black "Varney, Zoe"]
[Result "1-0"]
[ECO "E01"]
[WhiteElo "1911"]
[BlackElo "1974"]
[PlyCount "89"]
[EventDate "2020.??.??"]
[TimeControl "180+2"]
[WhiteClock "0:00:18"]
[BlackClock "0:00:30"]

1. d4 {[%emt 0:00:00]} d5 {[%emt 0:00:00]} 2. Nf3 {[%emt 0:00:01]} Nf6 {
[%emt 0:00:02]} 3. c4 {[%emt 0:00:01]} e6 {[%emt 0:00:01]} 4. g3 {[%emt 0:00:
03]} Bd6 {[%emt 0:00:02]} 5. Bg2 {[%emt 0:00:01]} c6 {[%emt 0:00:01]} 6. O-O {
[%emt 0:00:01]} Nbd7 {[%emt 0:00:01]} 7. Nc3 {[%emt 0:00:08]} O-O {[%emt 0:00:
02]} 8. Qc2 {[%emt 0:00:03]} dxc4 {[%emt 0:00:01]} 9. a4 {[%emt 0:00:13]} e5 {
[%emt 0:00:05]} 10. Bg5 {[%emt 0:00:13]} exd4 {[%emt 0:00:08]} 11. Nxd4 {
[%emt 0:00:05]} h6 {[%emt 0:00:12]} 12. Be3 {[%emt 0:00:18]} Nb6 {[%emt 0:00:
11]} 13. Nf5 {[%emt 0:00:24]} Bxf5 {[%emt 0:00:02]} 14. Qxf5 {[%emt 0:00:01]}
Qe7 {[%emt 0:00:18]} 15. Rfd1 {[%emt 0:00:07]} Rfd8 {[%emt 0:00:17]} 16. a5 {
[%emt 0:00:05]} Nbd5 {[%emt 0:00:09]} 17. Nxd5 {[%emt 0:00:05]} cxd5 {[%emt 0:
00:01]} 18. Bxd5 {[%emt 0:00:10]} Nxd5 {[%emt 0:00:33]} 19. Rxd5 {[%emt 0:00:
07]} Bc7 {[%emt 0:00:09]} 20. Rad1 {[%emt 0:00:11]} Rxd5 {[%emt 0:00:06]} 21.
Rxd5 {[%emt 0:00:03]} Rd8 {[%emt 0:00:01]} 22. Kf1 {[%emt 0:00:19]} Rxd5 {
[%emt 0:00:34]} 23. Qxd5 {[%emt 0:00:03]} Qb4 {[%emt 0:00:01]} 24. Bd4 {
[%emt 0:00:25]} Bxa5 {[%emt 0:00:26]} 25. Qe5 {[%emt 0:00:08]} f6 {[%emt 0:00:
09]} 26. Qe8+ {[%emt 0:00:05]} Kh7 {[%emt 0:00:01]} 27. Kg2 {[%emt 0:00:12]}
Qd6 {[%emt 0:00:07]} 28. Qe4+ {[%emt 0:00:04]} Kg8 {[%emt 0:00:03]} 29. Bxa7 {
[%emt 0:00:01]} Bb6 {[%emt 0:00:04]} 30. Bxb6 {[%emt 0:00:02]} Qxb6 {[%emt 0:
00:01]} 31. Qxc4+ {[%emt 0:00:00]} Kh7 {[%emt 0:00:01]} 32. Qc3 {[%emt 0:00:03]
} Qd6 {[%emt 0:00:02]} 33. b4 {[%emt 0:00:03]} Qb6 {[%emt 0:00:02]} 34. e3 {
[%emt 0:00:03]} Kg8 {[%emt 0:00:01]} 35. Qc4+ {[%emt 0:00:01]} Kf8 {[%emt 0:00:
01]} 36. Qc5+ {[%emt 0:00:03]} Qxc5 {[%emt 0:00:01]} 37. bxc5 {[%emt 0:00:01]}
Ke7 {[%emt 0:00:01]} 38. Kf3 {[%emt 0:00:01]} Kd7 {[%emt 0:00:04]} 39. Ke4 {
[%emt 0:00:01]} Kc6 {[%emt 0:00:01]} 40. Kd4 {[%emt 0:00:01]} g5 {[%emt 0:00:
02]} 41. f4 {[%emt 0:00:02]} b6 {[%emt 0:00:04]} 42. cxb6 {[%emt 0:00:02]} Kxb6
{[%emt 0:00:01]} 43. Kd5 {[%emt 0:00:01]} Kc7 {[%emt 0:00:02]} 44. Ke6 {
[%emt 0:00:01]} gxf4 {[%emt 0:00:01]} 45. exf4 {[%emt 0:00:01] Somton, Anita
won by resignation} 1-0